bitfinex-derivatives/quotes_SOLF0:USTF0_20251108
["timestamp","ask_amount","ask_price","bid_price","bid_amount"]
[1762615334914,3.1,156.26,156.16,2.97]
[1762615335312,0.04031036,156.23,156.2,2.97]
[1762615335721,3.1,156.22,156.19,5.81162662]
[1762615335923,3.1,156.22,156.19,0.04692662]
[1762615336319,0.04031036,156.23,156.19,3.01692662]
[1762615337120,0.04031036,156.23,156.22,2.97]
[1762615337428,8.8607,156.3,156.22,2.97]
[1762615338326,0.04723264,156.28,156.24,0.04373595]
[1762615338830,3.1,156.27,156.24,0.04373595]
[1762615339621,0.04723264,156.28,156.24,3.01373595]
[1762615341129,0.04723264,156.28,156.27,2.97]
[1762615341328,0.04723264,156.28,156.26,2.97]
[1762615342233,0.04723264,156.28,156.26,8.732]
[1762615343129,0.04723264,156.28,156.27,2.97]
[1762615343824,3.1,156.38,156.3,2.97]
[1762615344225,3.1,156.42,156.3,2.97]
[1762615344828,3.14257699,156.38,156.34,0.04311675]
[1762615345033,3.14730929,156.38,156.34,3.01532455]
[1762615345424,0.04730929,156.38,156.34,3.01532455]
[1762615346731,3.14730929,156.38,156.34,0.04532455]
[1762615348431,3.1,156.36,156.34,0.04532455]
[1762615349241,8.8588,156.36,156.34,0.04532455]
[1762615349437,3.1,156.35,156.34,0.04532455]
[1762615349740,3.1,156.35,156.26,2.97]
[1762615350234,3.1,156.32,156.26,2.97]
[1762615350541,3.14741227,156.31,156.27,0.04831779]
[1762615352543,3.25,156.3,156.27,0.04831779]
[1762615353441,3.25,156.29,156.27,0.04831779]
[1762615354138,3.25,156.28,156.21,5.7638]
[1762615354335,8.83560521,156.26,156.15,3.06]
[1762615354731,3.25,156.25,156.15,3.06]
[1762615355331,0.04219348,156.22,156.19,3.06]
[1762615355938,0.04219348,156.22,156.2,5.7643]
[1762615356340,0.04219348,156.22,156.21,3.06]
[1762615356648,3.25,156.29,156.22,3.06]
[1762615357535,0.04102679,156.27,156.25,8.8224]
[1762615357741,0.04426896,156.28,156.25,8.8224]
[1762615357944,0.04426896,156.28,156.25,3.06]
[1762615358142,0.04426896,156.28,156.27,3.06]
[1762615360041,0.04426896,156.28,156.26,5.762]
[1762615360345,0.04426896,156.28,156.26,8.822]
[1762615361448,0.04426896,156.28,156.27,3.06]
[1762615362844,0.04426896,156.28,156.24,8.86461116]
[1762615363147,0.04426896,156.28,156.24,3.10191116]
[1762615363848,3.18426896,156.28,156.24,3.10191116]
[1762615364053,3.18426896,156.28,156.24,8.86471116]
[1762615364344,3.18426896,156.28,156.24,0.04191116]
[1762615365748,3.14,156.26,156.24,0.04191116]
[1762615366645,3.14,156.25,156.18,5.765]
[1762615367749,3.14,156.22,156.2,0.04609228]
[1762615367951,3.14,156.22,156.13,3.02]
[1762615368844,0.04309884,156.19,156.13,3.02]
[1762615369046,3.18309884,156.19,156.14,5.7664]
[1762615369450,3.18309884,156.19,156.13,3.02]
[1762615369648,3.18309884,156.19,156.12,71.0071]
[1762615369848,3.18309884,156.19,156.09,3.02]
[1762615370051,0.04215222,156.16,156.09,3.02]
[1762615370953,0.04215222,156.16,156.11,8.7875]
[1762615371151,0.04619201,156.15,156.12,3.02]
[1762615371350,0.04619201,156.15,156.06,3.02]
[1762615371555,0.04705205,156.12,156.06,3.02]
[1762615371754,0.04705205,156.12,156.11,8.7875]
[1762615372752,3.14,156.19,156.14,3.02]
[1762615372953,3.14,156.23,156.14,3.02]
[1762615373452,3.14,156.23,156.18,8.7848]
[1762615373852,0.04627851,156.22,156.19,0.04897424]
[1762615374046,0.04627851,156.22,156.19,5.81357424]
[1762615374247,0.04627851,156.22,156.19,8.83357424]
[1762615375354,0.04627851,156.22,156.19,0.04897424]
[1762615375856,0.04627851,156.22,156.2,3.02]
[1762615376758,0.04627851,156.22,156.2,8.7841]
[1762615377857,3.18627851,156.22,156.19,0.04897424]
[1762615378054,0.04627851,156.22,156.19,0.04897424]
[1762615380452,3.18627851,156.22,156.19,0.04897424]
[1762615380966,0.04627851,156.22,156.19,3.06897424]
[1762615381164,0.04627851,156.22,156.21,2.99]
[1762615381767,3.14,156.26,156.21,2.99]
[1762615382258,3.14,156.26,156.22,2.99]
[1762615382464,3.14,156.3,156.22,2.99]
[1762615382968,3.18887591,156.28,156.24,0.04766766]
[1762615383173,3.18844438,156.28,156.24,0.04460687]
[1762615383576,8.77404959,156.28,156.24,0.04460687]
[1762615383873,8.77404959,156.28,156.15,2.99]
[1762615383874,3.14,156.27,156.15,2.99]
[1762615384071,3.14,156.25,156.15,2.99]
[1762615384676,0.04108334,156.22,156.18,3.03741188]
[1762615385475,0.04108334,156.22,156.2,5.7643]
[1762615386173,0.04108334,156.22,156.18,8.80231188]
[1762615386369,0.04108334,156.22,156.18,3.03741188]
[1762615387082,3.14,156.29,156.21,2.99]
[1762615388078,0.04699282,156.27,156.23,0.04251164]
[1762615388273,3.18699282,156.27,156.23,0.04251164]
[1762615389575,8.94899282,156.27,156.23,0.04251164]
[1762615389877,3.14,156.26,156.23,0.04251164]
[1762615390781,3.14,156.26,156.17,2.99]
[1762615390782,3.14,156.22,156.13,2.99]
[1762615391172,3.14,156.26,156.19,5.7646]
[1762615391372,3.14,156.26,156.16,2.99]
[1762615391777,3.18254846,156.23,156.19,5.80971903]
[1762615392175,0.04254846,156.23,156.19,3.03511903]
[1762615393087,0.04254846,156.23,156.2,5.7642]
[1762615393278,0.04254846,156.23,156.19,3.03511903]
[1762615393479,3.18254846,156.23,156.19,0.04511903]
[1762615393786,0.04254846,156.23,156.19,8.79971903]
[1762615395192,3.18254846,156.23,156.19,0.04511903]
[1762615395883,0.04254846,156.23,156.2,2.99]
[1762615396688,0.04254846,156.23,156.2,8.7543]
[1762615396985,0.04254846,156.23,156.2,2.99]
[1762615397690,0.04254846,156.23,156.2,8.7543]
[1762615398282,0.04254846,156.23,156.21,5.7639]
[1762615398484,3.14,156.31,156.22,2.99]
[1762615399580,0.04264027,156.28,156.25,3.03295316]
[1762615401989,3.18264027,156.28,156.25,0.04295316]
[1762615403693,3.14,156.34,156.25,3.03295316]
[1762615404191,3.14,156.38,156.3,2.99]
[1762615404787,3.18649927,156.36,156.32,0.04557081]
[1762615406091,0.04649927,156.36,156.32,3.03557081]
[1762615406696,0.04649927,156.36,156.35,2.99]
[1762615406994,3.14,156.47,156.35,2.99]
[1762615407196,3.14,156.5,156.35,2.99]
[1762615407500,3.14,156.5,156.41,8.7464]
[1762615407799,3.14,156.5,156.37,33.95]
[1762615407986,275.5799606,156.52,156.44,0.0425982]
[1762615407987,3.14,156.46,156.44,0.0425982]
[1762615408593,3.14,156.45,156.44,0.0425982]
[1762615409587,3.14,156.45,156.37,8.748]
[1762615409588,3.14,156.44,156.37,8.748]
[1762615410002,3.14,156.44,156.37,2.99]
[1762615410399,3.14,156.44,156.37,8.7479]
[1762615410592,0.04101908,156.42,156.39,0.04834533]
[1762615410899,0.04101908,156.42,156.39,3.03834533]
[1762615411296,3.14,156.48,156.39,3.03834533]
[1762615412188,0.04285969,156.45,156.39,8.79564533]
[1762615412388,3.01285969,156.45,156.4,3.01]
[1762615412898,0.04285969,156.45,156.4,3.01]
[1762615413296,0.04285969,156.45,156.41,3.01]
[1762615414204,0.04285969,156.45,156.42,3.01]
[1762615415202,0.04285969,156.45,156.41,5.7564]
[1762615415404,0.04285969,156.45,156.39,3.05834533]
[1762615416798,275.5799606,156.52,156.44,3.01]
[1762615416999,2.97,156.59,156.44,3.01]
[1762615417394,8.721,156.57,156.48,5.7539]
[1762615417705,3.015802,156.54,156.51,0.04815175]
[1762615418999,0.045802,156.54,156.51,0.04815175]
[1762615419205,0.045802,156.54,156.51,3.05815175]
[1762615419998,0.045802,156.54,156.52,3.01]
[1762615422093,0.045802,156.54,156.52,8.7624]
[1762615422398,0.045802,156.54,156.51,0.04815175]
[1762615422399,3.015802,156.54,156.51,0.04815175]
[1762615422704,3.015802,156.54,156.47,8.18]
[1762615422705,2.97,156.53,156.47,8.18]
[1762615422897,2.97,156.51,156.47,8.18]
[1762615423395,3.23,156.49,156.47,8.18]
[1762615423595,3.23,156.49,156.41,8.7664]
[1762615423792,3.23,156.49,156.43,0.04583184]
[1762615423793,0.04340133,156.47,156.43,0.04583184]
[1762615424201,3.23,156.46,156.43,0.04583184]
[1762615428301,3.27340133,156.47,156.43,0.04583184]
[1762615432119,3.23,156.41,156.39,7.95]
[1762615432308,3.23,156.41,156.32,3.09]
[1762615432805,3.23,156.39,156.32,3.09]
[1762615433114,3.23,156.36,156.34,0.04383428]
[1762615433312,3.23,156.36,156.28,8.8513]
[1762615433517,0.04393187,156.34,156.33,0.04796187]
[1762615435809,0.04393187,156.34,156.33,3.13796187]
[1762615436211,0.04393187,156.34,156.33,0.04796187]
[1762615436715,0.04393187,156.34,156.33,3.13796187]
[1762615437411,3.23,156.39,156.33,3.13796187]
[1762615438503,0.0482386,156.38,156.33,3.13796187]
[1762615438810,3.2782386,156.38,156.33,3.13796187]
[1762615441216,3.2782386,156.38,156.33,0.04796187]
[1762615443125,3.06,156.36,156.33,0.04796187]
[1762615443627,3.06,156.34,156.27,6.12]
[1762615444323,3.06,156.31,156.27,6.12]
[1762615444625,8.86864207,156.31,156.27,6.16592884]
[1762615444827,3.06,156.3,156.27,6.16592884]
[1762615445331,3.06,156.29,156.27,6.16592884]
[1762615445528,3.06,156.29,156.17,3.06]
[1762615445826,3.06,156.25,156.17,3.06]
[1762615446627,3.1042758,156.23,156.19,0.04595632]
[1762615446826,3.1042758,156.23,156.19,0.04869415]
[1762615447422,3.06,156.2,156.19,0.04869415]
[1762615447637,3.06,156.2,156.19,0.00154687]
[1762615448632,4.34,156.2,156.19,0.00154687]
[1762615448931,3.06,156.2,156.19,0.00154687]
[1762615450629,4.34,156.2,156.19,0.00154687]
[1762615452126,3.06,156.2,156.19,0.00154687]
[1762615452834,3.06,156.22,156.19,0.00154687]
[1762615453731,0.0442758,156.23,156.19,0.00154687]
[1762615453930,0.0442758,156.23,156.19,3.06154687]
[1762615454828,3.1042758,156.23,156.19,0.00154687]
[1762615455531,3.06,156.2,156.19,0.00154687]
[1762615457936,89.6696,156.2,156.13,4.687e-05]
[1762615458134,1.28,156.19,155.97,3.06]
[1762615458337,3.06,156.15,156.02,3.06]
[1762615458534,3.06,156.13,156.02,3.06]
[1762615458750,3.06,156.19,156.08,3.06]
[1762615459041,0.04081247,156.15,156.12,3.09328926]
[1762615459240,0.04272451,156.15,156.12,0.03328926]
[1762615459835,3.10272451,156.15,156.12,0.03328926]
[1762615460044,0.04272451,156.15,156.12,0.03328926]
[1762615460846,0.04272451,156.15,156.12,3.09328926]
[1762615461039,0.04272451,156.15,156.12,0.03328926]
[1762615461737,3.10272451,156.15,156.12,0.03328926]
[1762615461936,0.04272451,156.15,156.12,0.03328926]
[1762615462130,0.04272451,156.15,156.12,3.09328926]
[1762615462945,3.06,156.19,156.12,3.09328926]
[1762615462946,3.06,156.24,156.13,3.06]
[1762615463139,5.7638,156.22,156.14,5.7664]
[1762615463334,3.06,156.24,156.13,3.06]
[1762615463835,3.06,156.24,156.16,5.7658]
[1762615464041,0.04382778,156.2,156.17,0.04663814]
[1762615464238,3.10382778,156.2,156.17,0.04663814]
[1762615465240,3.10382778,156.2,156.08,7.59]
[1762615465447,3.06,156.18,156.08,10.65]
[1762615465744,3.06,156.18,156.09,3.06]
[1762615465941,3.06,156.18,156.08,7.59]
[1762615465942,3.06,156.18,156.1,8.8277]
[1762615466443,3.06,156.15,156.12,0.02937563]
[1762615466647,3.10790952,156.15,156.12,0.02937563]
[1762615468547,0.04790952,156.15,156.12,0.02937563]
[1762615470043,3.10790952,156.15,156.12,0.02937563]
[1762615470643,3.06,156.13,156.12,0.02937563]
[1762615472742,3.01,156.11,156.08,7.59]
[1762615473244,3.01,156.09,156.08,7.59]
[1762615473548,3.01,156.09,156.02,3.06]
[1762615473748,0.04121157,156.07,156.02,3.06]
[1762615473948,8.7768,156.14,156.06,8.7394]
[1762615474151,0.04615838,156.12,156.06,8.7394]
[1762615474352,0.04615838,156.12,155.99,5.59801864]
[1762615474543,0.04777712,156.07,156.0,11.5435]
[1762615474852,3.01,156.17,155.99,5.59801864]
[1762615475147,3.01,156.17,156.03,5.59801864]
[1762615475545,3.01,156.17,156.11,5.7675]
[1762615475742,0.04841863,156.16,156.12,0.04706738]
[1762615475938,0.0457883,156.16,156.12,0.04706738]
[1762615476254,0.0457883,156.16,156.14,5.7665]
[1762615476447,0.0457883,156.16,156.15,1.83]
[1762615476847,7.66766556,156.25,156.16,1.83]
[1762615477146,3.01,156.25,156.16,1.83]
[1762615477739,5.7631,156.24,156.16,7.5956]
[1762615477947,0.0463338,156.22,156.18,0.04857429]
[1762615478753,0.0463338,156.22,156.18,7.64357429]
[1762615478944,0.0463338,156.22,156.18,1.87857429]
[1762615479754,0.0463338,156.22,156.18,0.04857429]
[1762615480553,3.0563338,156.22,156.18,0.04857429]
[1762615481156,8.8201338,156.22,156.18,0.04857429]
[1762615481851,0.0463338,156.22,156.18,0.04857429]
[1762615482952,3.0563338,156.22,156.18,0.04857429]
[1762615483845,7.73244555,156.22,156.18,0.04857429]
[1762615484044,3.0563338,156.22,156.18,0.04857429]
[1762615484245,3.16,156.2,156.18,0.04857429]
[1762615485659,3.16,156.19,156.18,0.04857429]
[1762615486347,8.9242,156.21,156.18,0.04857429]
[1762615486548,3.16,156.2,156.18,0.04857429]
[1762615486742,4.5457306,156.22,156.18,0.04857429]
[1762615486957,3.16,156.21,156.18,0.04857429]
[1762615488755,3.16,156.2,156.18,0.04857429]
[1762615489742,3.2063338,156.22,156.18,0.04857429]
[1762615491045,8.9702338,156.22,156.18,0.04857429]
[1762615491249,3.16,156.21,156.18,0.04857429]
[1762615491853,3.16,156.2,156.18,0.04857429]
[1762615494151,5.7643,156.21,156.18,0.04857429]
[1762615494355,8.9243,156.21,156.18,0.04857429]
[1762615495554,3.16,156.2,156.18,0.04857429]
[1762615498253,8.9702338,156.22,156.18,0.04857429]
[1762615498651,3.2063338,156.22,156.18,0.04857429]
[1762615498856,0.0463338,156.22,156.18,1.87857429]
[1762615499057,8.9700338,156.22,156.18,0.04857429]
[1762615499256,3.16,156.21,156.18,0.04857429]
[1762615500454,3.2063338,156.22,156.18,0.04857429]
[1762615501155,3.15,156.21,156.18,0.04857429]
[1762615502156,3.15,156.19,156.18,0.04857429]
[1762615502950,0.0463338,156.22,156.18,1.87857429]
[1762615503351,0.0463338,156.22,156.2,5.7642]
[1762615503556,0.0463338,156.22,156.18,1.87857429]
[1762615504260,3.1963338,156.22,156.18,0.04857429]
[1762615505562,3.15,156.19,156.18,0.04857429]
[1762615506660,0.0463338,156.22,156.18,1.87857429]
[1762615507463,8.9600338,156.22,156.18,0.04857429]
[1762615507661,3.15,156.21,156.18,0.04857429]
[1762615508159,0.0463338,156.22,156.18,1.87857429]
[1762615508851,0.0463338,156.22,156.2,7.5943]
[1762615509055,0.0463338,156.22,156.21,1.83]
[1762615509664,3.1963338,156.22,156.18,0.04857429]
[1762615509869,3.1963338,156.22,156.18,1.87857429]
[1762615510357,0.0463338,156.22,156.18,1.87857429]
[1762615510952,0.0463338,156.22,156.2,7.5943]
[1762615511155,0.0463338,156.22,156.21,1.83]
[1762615511756,346.5663412,156.34,156.22,1.83]
[1762615511757,3.15,156.3,156.22,1.83]
[1762615512164,5.7601,156.32,156.26,1.83]
[1762615512462,3.15,156.33,156.26,1.83]
[1762615512666,346.5663412,156.34,156.28,0.04709529]
[1762615512667,3.19434048,156.31,156.28,0.04709529]
[1762615513264,3.15,156.3,156.28,0.04709529]
[1762615514162,0.04434048,156.31,156.28,0.04709529]
[1762615514566,3.19434048,156.31,156.28,0.04709529]
[1762615514972,0.04434048,156.31,156.28,5.80839529]
[1762615516061,0.04434048,156.31,156.28,7.63839529]
[1762615516265,0.04434048,156.31,156.29,1.83]
[1762615516465,0.04434048,156.31,156.28,0.04709529]
[1762615516665,0.04434048,156.31,156.28,1.87709529]
[1762615517171,0.04434048,156.31,156.28,0.04709529]
[1762615518172,3.19434048,156.31,156.28,0.04709529]
[1762615519976,3.15,156.3,156.28,0.04709529]
[1762615520870,8.9108,156.3,156.28,0.04709529]
[1762615521065,3.15,156.29,156.28,0.04709529]
[1762615524474,0.04434048,156.31,156.21,1.83]
[1762615524475,3.15,156.27,156.21,1.83]
[1762615525272,5.7623,156.26,156.21,1.83]
[1762615525472,0.0413467,156.25,156.22,0.04727129]
[1762615525678,3.1913467,156.25,156.22,0.04727129]
[1762615526480,0.0413467,156.25,156.22,1.87727129]
[1762615527073,0.0413467,156.25,156.22,7.64087129]
[1762615527380,0.0413467,156.25,156.23,1.83]
[1762615527781,0.0413467,156.25,156.23,7.5932]
[1762615527984,0.0413467,156.25,156.24,1.83]
[1762615528281,0.0413467,156.25,156.23,5.7632]
[1762615529273,0.0413467,156.25,156.23,7.5932]
[1762615530081,0.0413467,156.25,156.24,1.83]
[1762615534076,3.06,156.32,156.26,5.762]
[1762615534481,3.06,156.32,156.24,1.83]
[1762615534785,5.7608,156.3,156.27,1.83]
[1762615534971,5.7608,156.3,156.18,19.0702]
[1762615534972,3.06,156.3,156.18,19.0702]
[1762615535177,0.04779042,156.26,156.23,1.83]
[1762615535480,0.04779042,156.26,156.24,5.7629]
[1762615536273,0.04779042,156.26,156.24,7.5929]
[1762615536480,3.10779042,156.26,156.22,0.04700864]
[1762615536680,3.10779042,156.26,156.22,1.87700864]
[1762615536876,3.10779042,156.26,156.22,0.04700864]
[1762615537380,3.06,156.23,156.22,0.04700864]
[1762615539085,3.06,156.25,156.22,0.04700864]
[1762615539982,8.87009042,156.26,156.22,0.04700864]
[1762615540184,3.06,156.25,156.22,0.04700864]
[1762615541394,3.06,156.25,156.22,5.81060864]
[1762615542394,3.06,156.25,156.22,0.04700864]
[1762615542804,0.04779042,156.26,156.23,1.83]
[1762615543003,3.10779042,156.26,156.22,0.04700864]
[1762615544201,3.10779042,156.26,156.23,5.7632]
[1762615544603,0.04779042,156.26,156.24,7.5928]
[1762615544804,0.04779042,156.26,156.25,1.83]
[1762615545405,4.4741905,156.33,156.26,5.762]
[1762615545406,3.06,156.33,156.26,5.762]
[1762615545801,5.7616,156.28,156.21,1.83]
[1762615545996,3.06,156.3,156.21,1.83]
[1762615546200,3.06,156.28,156.19,1.83]
[1762615546503,0.04839098,156.25,156.22,1.87428641]
[1762615547204,0.04839098,156.25,156.24,1.83]
[1762615549510,3.06,156.31,156.25,5.7622]
[1762615549810,3.06,156.31,156.24,1.83]
[1762615550112,8.8204,156.31,156.24,1.83]
[1762615550504,0.04881119,156.29,156.26,1.87382866]
[1762615550808,0.04881119,156.29,156.26,0.04382866]
[1762615551017,3.10881119,156.29,156.26,0.04382866]
[1762615551612,0.04881119,156.29,156.26,1.87382866]
[1762615552113,0.04881119,156.29,156.28,1.83]
[1762615553616,5.759,156.35,156.3,1.83]
[1762615554508,280.99328233,156.34,156.3,1.87638262]
[1762615555011,280.99328233,156.34,156.3,7.63698262]
[1762615556318,284.05328233,156.34,156.3,7.63698262]
[1762615556614,0.04694113,156.34,156.31,7.5902]
[1762615557210,0.04694113,156.34,156.33,1.83]
[1762615558214,0.04694113,156.34,156.31,1.83]
[1762615558414,3.10694113,156.34,156.3,5.80688262]
[1762615558614,3.10694113,156.34,156.3,0.04638262]
[1762615559610,0.04694113,156.34,156.3,1.87638262]
[1762615559811,0.04694113,156.34,156.31,7.5902]
[1762615560517,0.04694113,156.34,156.32,1.83]
[1762615560718,0.04694113,156.34,156.33,1.83]
[1762615560916,0.04694113,156.34,156.32,5.7599]
[1762615561117,0.04694113,156.34,156.32,1.83]
[1762615561317,3.19694113,156.34,156.3,7.62708262]
[1762615562619,0.04694113,156.34,156.31,1.82]
[1762615564020,3.19694113,156.34,156.3,0.04638262]
[1762615564723,3.19694113,156.34,156.3,1.86638262]
[1762615565019,0.04694113,156.34,156.3,1.86638262]
[1762615565423,3.19694113,156.34,156.3,1.86638262]
[1762615565715,0.04694113,156.34,156.31,1.82]
[1762615566321,0.04694113,156.34,156.31,7.5802]
[1762615566620,0.04694113,156.34,156.31,1.82]
[1762615566922,3.19694113,156.34,156.3,1.86638262]
[1762615567219,3.15,156.31,156.3,0.04638262]
[1762615569219,6.91775921,156.33,156.3,0.04638262]
[1762615569420,0.04694113,156.34,156.3,1.86638262]
[1762615570311,0.04694113,156.34,156.32,1.82]
[1762615570920,72.11775921,156.39,156.32,1.82]
[1762615571227,5.7573,156.4,156.33,1.82]
[1762615572126,3.19211154,156.38,156.35,0.04357277]
[1762615572722,0.04211154,156.38,156.35,0.04357277]
[1762615572927,0.04211154,156.38,156.35,1.86357277]
[1762615573823,0.04211154,156.38,156.35,7.62227277]
[1762615574033,0.04211154,156.38,156.36,1.82]
[1762615574322,0.04211154,156.38,156.35,0.04357277]
[1762615574525,0.04211154,156.38,156.35,1.86357277]
[1762615576425,3.19211154,156.38,156.35,0.04357277]
[1762615577431,6.95987075,156.38,156.35,0.04357277]
[1762615577733,3.15,156.37,156.35,0.04357277]
[1762615578529,3.80987075,156.38,156.35,0.04357277]
[1762615578721,6.95987075,156.38,156.35,0.04357277]
[1762615578925,3.15,156.37,156.35,0.04357277]
[1762615579437,3.15,156.36,156.29,12.9708]
[1762615579730,3.76775921,156.42,156.29,12.9708]
[1762615579731,3.76775921,156.34,156.3,1.82]
[1762615579928,3.76775921,156.34,156.3,7.5806]
[1762615580124,12.67605921,156.37,156.31,1.82]
[1762615580328,3.76775921,156.39,156.31,1.82]
[1762615580531,0.04376192,156.36,156.33,1.82]
[1762615581030,3.19376192,156.36,156.32,0.04794805]
[1762615582420,3.19376192,156.36,156.32,7.62784805]
[1762615583333,0.04376192,156.36,156.33,7.5794]
[1762615583926,0.04376192,156.36,156.35,1.82]
[1762615584640,9.52425921,156.42,156.36,5.7583]
[1762615584837,6.91775921,156.42,156.35,1.82]
[1762615585132,3.15,156.42,156.35,1.82]
[1762615585336,3.15,156.42,156.35,7.5787]
[1762615585535,3.15,156.42,156.35,1.82]
[1762615585730,0.04782706,156.4,156.37,0.04788014]
[1762615585928,0.04782706,156.4,156.38,7.5776]
[1762615586133,3.15,156.45,156.39,1.82]
[1762615586633,3.15,156.45,156.41,1.82]
[1762615586934,3.15,156.45,156.34,1.82]
[1762615587137,3.15,156.45,156.39,5.7572]
[1762615587138,0.04054979,156.41,156.39,5.7572]
[1762615587337,0.04054979,156.41,156.39,7.5772]
[1762615587529,0.04054979,156.41,156.39,1.82]
[1762615587727,0.04054979,156.41,156.38,0.04538628]
[1762615588127,3.19054979,156.41,156.38,0.04538628]
[1762615589138,0.04054979,156.41,156.39,1.82]
[1762615589546,0.04054979,156.41,156.38,0.04538628]
[1762615589832,3.19054979,156.41,156.38,0.04538628]
[1762615596136,3.2,156.4,156.38,0.04538628]
[1762615596332,5.61014629,156.39,156.38,0.04538628]
[1762615600440,2.41014629,156.39,156.38,0.04538628]
[1762615600638,11.40759608,156.41,156.38,0.04538628]
[1762615600944,3.2,156.4,156.38,0.04538628]
[1762615605338,5.68069608,156.41,156.38,0.04538628]
[1762615606152,3.23,156.4,156.38,0.04538628]
[1762615606741,3.23,156.4,156.38,6.37538628]
[1762615607841,3.23,156.39,156.38,6.37538628]
[1762615608651,8.20739608,156.41,156.38,6.37538628]
[1762615608851,3.23,156.4,156.38,6.37538628]
[1762615609445,5.64014629,156.39,156.38,6.37538628]
[1762615612956,3.23,156.39,156.38,6.37538628]
[1762615616042,5.64014629,156.39,156.38,6.37538628]
[1762615616263,0.04054979,156.41,156.38,8.19538628]
[1762615616450,3.27054979,156.41,156.38,8.19538628]
[1762615618557,0.04054979,156.41,156.39,1.82]
[1762615619152,0.04054979,156.41,156.38,8.19538628]
[1762615620049,3.27054979,156.41,156.38,8.19538628]
[1762615620760,3.27054979,156.41,156.38,13.95308628]
[1762615621247,3.27054979,156.41,156.39,5.7573]
[1762615621447,0.04054979,156.41,156.39,5.7573]
[1762615621653,0.04054979,156.41,156.4,1.82]
[1762615622649,0.04054979,156.41,156.38,8.19538628]
[1762615622844,3.13054979,156.41,156.38,8.19538628]
[1762615623260,0.04054979,156.41,156.39,1.82]
[1762615623461,0.04054979,156.41,156.39,7.5774]
[1762615624861,3.13054979,156.41,156.38,6.37538628]
[1762615625557,3.09,156.39,156.38,6.22800947]
[1762615625858,3.09,156.37,156.32,1.82]
[1762615626053,3.09,156.37,156.32,7.5799]
[1762615626253,3.09,156.37,156.33,1.82]
[1762615626759,5.80597552,156.37,156.34,1.82]
[1762615627257,0.04777552,156.37,156.34,1.82]
[1762615627462,3.09,156.43,156.36,1.82]
[1762615627960,8.8462,156.43,156.38,7.5776]
[1762615628166,8.8462,156.43,156.39,1.82]
[1762615628463,8.88982523,156.43,156.39,1.8662753]
[1762615628958,3.13362523,156.43,156.39,7.6235753]
[1762615629257,3.13362523,156.43,156.39,1.8662753]
[1762615629764,8.88962523,156.43,156.39,1.8662753]
[1762615630060,3.13362523,156.43,156.39,1.8662753]
[1762615630965,3.13362523,156.43,156.39,7.6236753]
[1762615632063,3.13362523,156.43,156.4,5.757]
[1762615632264,0.04362523,156.43,156.41,1.82]
[1762615632867,0.04362523,156.43,156.4,7.577]
[1762615633469,0.04362523,156.43,156.4,1.82]
[1762615634065,0.04362523,156.43,156.4,7.577]
[1762615635659,0.04362523,156.43,156.41,1.82]
[1762615636767,0.04362523,156.43,156.41,7.5766]
[1762615636969,0.04362523,156.43,156.41,1.82]
[1762615638664,0.04362523,156.43,156.42,1.82]
[1762615640075,8.844,156.49,156.44,1.82]
[1762615640267,3.09,156.51,156.46,1.82]
[1762615640469,8.8433,156.51,156.46,1.82]
[1762615640675,2.41014629,156.55,156.38,11.5154]
[1762615640676,3.09,156.5,156.43,2.41014629]
[1762615641068,8.8445,156.47,156.45,0.0411578]
[1762615641370,3.09,156.47,156.45,0.0411578]
[1762615642064,3.13559964,156.48,156.45,0.0411578]
[1762615643067,8.8445,156.47,156.45,0.0411578]
[1762615643379,3.09,156.46,156.45,0.0411578]
[1762615653896,0.04559964,156.48,156.45,0.0411578]
[1762615653897,0.04559964,156.48,156.45,1.8711578]
[1762615654188,0.04559964,156.48,156.46,1.83]
[1762615655092,0.04559964,156.48,156.46,7.5848]
[1762615662994,3.21559964,156.48,156.45,0.0411578]
[1762615663301,3.21559964,156.48,156.45,1.8511578]